bitfinex/quotes_ETHUSD_20240810
["timestamp","ask_amount","ask_price","bid_price","bid_amount"]
[1723287696586,0.59493618,2633.8,2633.6,4.18848]
[1723287696792,3.79614,2634.3,2633.7,2.29]
[1723287696949,3.79614,2634.3,2633.7,2.40719701]
[1723287697679,1.89813,2634.2,2633.7,2.40719701]
[1723287700980,1.89818,2634.1,2633.7,2.40719701]
[1723287701793,1.89833,2633.9,2633.7,2.40719701]
[1723287701960,1.89825,2634.0,2633.7,2.40719701]
[1723287702295,1.89818,2634.1,2633.7,2.40719701]
[1723287705490,3.79642,2634.1,2633.7,2.40719701]
[1723287707915,3.78621587,2634.1,2633.7,2.40719701]
[1723287708671,1.88797587,2634.1,2633.7,2.40719701]
[1723287709838,1.135,2634.1,2633.7,2.30386802]
[1723287711427,3.03319,2634.1,2633.7,2.30386802]
[1723287712332,1.135,2634.1,2633.7,2.30386802]
[1723287713427,1.89804,2634.3,2633.8,2.2842]
[1723287713722,3.03304,2634.3,2633.9,0.11662845]
[1723287714805,4.93113,2634.3,2633.9,0.11662845]
[1723287715303,3.03304,2634.3,2633.9,0.11662845]
[1723287715926,3.03304,2634.3,2634.0,2.2842]
[1723287716114,3.03304,2634.3,2634.0,2.4007401]
[1723287717725,3.03304,2634.3,2634.0,0.1165401]
[1723287717929,1.89818,2634.1,2634.0,0.1165401]
[1723287718110,1.89818,2634.1,2633.8,2.2842]
[1723287718427,3.03318,2634.1,2633.9,0.11651391]
[1723287719045,1.135,2634.1,2633.9,0.11651391]
[1723287719395,2.201424,2634.2,2634.0,2.2842]
[1723287719646,3.6277988,2634.5,2634.1,0.11643369]
[1723287719931,1.89808,2634.3,2634.1,0.11643369]
[1723287720238,3.79616,2634.3,2634.1,0.11643369]
[1723287720411,1.8981,2634.2,2634.1,0.11643369]
[1723287721136,1.8981,2634.2,2633.9,2.2842]
[1723287721442,1.89818,2634.1,2634.0,0.11649188]
[1723287722641,2.277718,2634.2,2634.0,0.11649188]
[1723287723500,1.89818,2634.1,2634.0,0.11649188]
[1723287726235,1.89818,2634.1,2633.7,2.4893]
[1723287726423,1.89825,2634.0,2633.7,2.4893]
[1723287726943,1.4762718,2634.1,2633.4,2.4893]
[1723287726944,1.89849,2633.7,2633.4,2.4893]
[1723287729042,1.89835,2633.9,2633.4,2.4893]
[1723287729343,1.89835,2633.9,2633.5,2.4893]
[1723287731904,1.89821,2634.1,2633.5,4.3879]
[1723287732112,1.89821,2634.1,2633.5,3.04159]
[1723287732350,1.89821,2634.1,2633.5,4.17659]
[1723287732556,1.89821,2634.1,2633.7,2.4893]
[1723287734482,1.89807,2634.3,2633.7,4.38771]
[1723287734692,1.89807,2634.3,2633.8,2.4893]
[1723287734847,2.691169,2634.3,2633.8,2.4893]
[1723287735547,4.589259,2634.3,2633.8,2.4893]
[1723287735782,2.691169,2634.3,2633.8,2.4893]
[1723287737559,2.691169,2634.3,2633.9,0.11652596]
[1723287738398,1.89816,2634.2,2633.9,0.11652596]
[1723287739095,1.89818,2634.1,2633.9,0.11652596]
[1723287742111,5.29408,2634.1,2633.9,0.11652596]
[1723287742398,10.95565,2634.0,2633.9,0.11652596]
[1723287742606,1.89897,2633.0,2632.7,9.9793]
[1723287742788,1.89897,2633.0,2632.7,2.4893]
[1723287743103,1.89904,2632.9,2632.8,0.10796412]
[1723287743280,1.89904,2632.9,2632.7,2.4893]
[1723287743610,1.89904,2632.9,2632.8,0.10796412]
[1723287743808,1.89904,2632.9,2632.7,2.4893]
[1723287744109,1.89897,2633.0,2632.8,0.10796412]
[1723287744287,3.798,2633.0,2632.7,2.4893]
[1723287744489,1.89908,2632.9,2632.7,2.4893]
[1723287745091,1.89911,2632.8,2632.7,2.4893]
[1723287745776,1.89911,2632.8,2632.5,2.4893]
[1723287747492,1.89897,2633.0,2632.5,2.4893]
[1723287748515,1.89912,2632.8,2632.5,2.4893]
[1723287749321,1.89897,2633.0,2632.5,4.88562635]
[1723287750215,3.798,2633.0,2632.5,4.88562635]
[1723287750805,1.89909,2632.9,2632.5,4.88562635]
[1723287752717,1.89909,2632.9,2632.6,0.10808062]
[1723287753035,1.89912,2632.8,2632.6,0.10808062]
[1723287754211,1.89919,2632.7,2632.6,0.10808062]
[1723287754433,1.89926,2632.6,2632.4,2.3196]
[1723287764056,3.79859,2632.6,2632.3,0.01450348]
[1723287764217,2.625879,2632.6,2632.3,0.01450348]
[1723287764717,4.525189,2632.6,2632.3,0.01450348]
[1723287764921,2.625879,2632.6,2632.3,0.01450348]
[1723287765371,1.89935,2632.5,2632.3,0.01450348]
[1723287765723,1.89926,2632.6,2632.3,0.01450348]
[1723287767451,1.8992,2632.7,2632.3,0.01450348]
[1723287767652,1.8992,2632.7,2632.4,0.10885437]
[1723287768569,1.89926,2632.6,2632.4,0.10885437]
[1723287772663,1.8992,2632.7,2632.4,0.10885437]
[1723287772989,1.89933,2632.5,2632.4,0.10885437]
[1723287783796,1.89933,2632.5,2632.4,0.08305813]
[1723287783997,1.89933,2632.5,2632.4,0.10931549]
[1723287784505,2.4421336,2632.5,2632.4,0.10931549]
[1723287786598,1.89905,2632.9,2632.5,2.4575]
[1723287786792,6.03505,2632.9,2632.5,2.4575]
[1723287786980,6.03505,2632.9,2632.6,0.10919898]
[1723287788885,1.89912,2632.8,2632.6,0.10919898]
[1723287789087,2.692533,2632.8,2632.6,0.10919898]
[1723287791826,4.37676,2633.2,2632.6,0.10919898]
[1723287792126,1.89895,2633.1,2632.6,0.10919898]
[1723287792708,1.89898,2633.0,2632.6,0.10919898]
[1723287793116,3.79801,2633.0,2632.6,0.10919898]
[1723287793309,1.89898,2633.0,2632.6,0.10919898]
[1723287793529,3.798,2633.0,2632.6,0.10919898]
[1723287793833,1.89898,2633.0,2632.6,0.10919898]
[1723287798819,2.392364,2633.0,2632.6,0.10919898]
[1723287799719,3.528364,2633.0,2632.6,0.10919898]
[1723287802069,1.89919,2632.7,2632.6,0.10919898]
[1723287802363,1.8993,2632.6,2632.3,2.47200348]
[1723287802527,1.8993,2632.6,2632.4,0.10915256]
[1723287803040,2.392749,2632.6,2632.4,0.10915256]
[1723287803441,0.493449,2632.6,2632.4,0.10915256]
[1723287803651,2.392749,2632.6,2632.4,0.10915256]
[1723287806671,0.493449,2632.6,2632.4,0.10915256]
[1723287806967,2.392719,2632.6,2632.4,0.10915256]
[1723287807574,1.89933,2632.5,2632.4,0.10915256]
[1723287807875,2.3285269,2632.5,2632.4,0.10915256]
[1723287808256,4.2278569,2632.5,2632.4,0.10915256]
[1723287808451,3.79866,2632.5,2632.4,0.10915256]
[1723287809082,1.8994,2632.4,2632.3,0.01450348]
[1723287809484,4.9348,2632.4,2632.3,0.01450348]
[1723287812688,4.9348,2632.4,2632.3,0.12378069]
[1723287812894,5.66057,2632.4,2632.3,0.01450348]
[1723287813092,5.66057,2632.4,2632.3,0.12378069]
[1723287813260,5.66057,2632.4,2632.3,0.01450348]
[1723287813465,5.66057,2632.4,2632.3,0.12378069]
[1723287813676,5.66057,2632.4,2632.3,0.01450348]
[1723287813895,5.66057,2632.4,2632.3,0.12378069]
[1723287814110,5.66057,2632.4,2632.3,0.01450348]
[1723287814258,5.66057,2632.4,2632.3,0.12378069]
[1723287814461,5.66057,2632.4,2632.3,0.01450348]
[1723287814658,3.76117,2632.4,2632.3,0.12378069]
[1723287816790,1.89925,2632.7,2632.4,2.3729]
[1723287817194,1.89925,2632.7,2632.5,0.10957109]
[1723287817398,3.03525,2632.7,2632.5,0.10957109]
[1723287817688,1.89913,2632.8,2632.5,0.10957109]
[1723287820116,1.89926,2632.6,2632.5,0.10957109]
[1723287822459,3.7983,2632.8,2632.5,0.10957109]
[1723287822863,1.89919,2632.7,2632.5,0.10957109]
[1723287824295,1.89913,2632.8,2632.5,0.10957109]
[1723287825097,3.7983,2632.8,2632.5,0.10957109]
[1723287825482,1.89913,2632.8,2632.5,0.10957109]
[1723287826090,1.899,2633.0,2632.6,2.4299]
[1723287826396,1.899,2633.0,2632.7,0.10910452]
[1723287827918,1.89905,2632.9,2632.7,0.10910452]
[1723287830033,1.899,2633.0,2632.7,0.10910452]
[1723287830304,1.89886,2633.2,2632.8,2.4299]
[1723287830500,1.89886,2633.2,2632.8,2.53880145]
[1723287832306,0.5950938,2633.3,2632.8,2.53880145]
[1723287832727,2.4939138,2633.3,2632.8,2.53880145]
[1723287833997,1.89885,2633.2,2632.8,2.53880145]
[1723287834399,0.24939438,2633.1,2632.8,2.53880145]
[1723287835203,3.79775,2633.2,2632.8,2.53880145]
[1723287835534,1.89891,2633.1,2632.8,2.53880145]
[1723287838141,1.89885,2633.2,2632.8,2.53880145]
[1723287842749,1.89891,2633.1,2632.8,2.53880145]
[1723287845980,1.89902,2633.0,2632.8,2.53880145]
[1723287854877,3.79805,2633.0,2632.8,2.53880145]
[1723287855179,1.89902,2633.0,2632.8,2.53880145]
[1723287856476,3.79808,2632.9,2632.8,0.10890145]
[1723287856687,7.29978,2632.9,2632.8,0.10890145]
[1723287856868,3.79838,2632.7,2632.6,19.56]
[1723287857045,4.908196,2632.7,2632.6,19.56]
[1723287857658,4.908196,2632.7,2632.6,19.66872228]
[1723287858963,4.908196,2632.7,2632.6,0.10872228]
[1723287859182,1.89934,2632.5,2632.3,0.01450348]
[1723287859495,1.89934,2632.5,2632.4,0.10883879]
[1723287862312,2.279201,2632.5,2632.4,0.10883879]
[1723287862493,4.178541,2632.5,2632.4,0.10883879]
[1723287862893,2.279201,2632.5,2632.4,0.10883879]
[1723287863209,1.89924,2632.7,2632.4,0.10883879]
[1723287863395,1.89926,2632.6,2632.4,0.10883879]
[1723287863812,1.89933,2632.5,2632.4,0.10883879]
[1723287865120,3.79849,2632.7,2632.4,2.52443879]
[1723287865286,1.89926,2632.6,2632.4,2.52443879]
[1723287865825,3.79849,2632.7,2632.4,2.52443879]
[1723287867616,1.89926,2632.6,2632.4,2.52443879]
[1723287867995,1.89926,2632.6,2632.4,0.10883879]
[1723287869023,1.89933,2632.5,2632.4,0.10883879]
[1723287869684,2.27912,2632.6,2632.4,0.10883879]
[1723287869879,1.89927,2632.6,2632.4,0.10883879]
[1723287870882,0.59512625,2632.9,2632.5,2.3694]
[1723287871193,2.49417625,2632.9,2632.6,0.10906021]
[1723287872125,0.59512625,2632.9,2632.7,2.3694]
[1723287872333,1.89887,2633.2,2632.7,2.3694]
[1723287872518,2.502357,2633.2,2632.8,0.10881698]
[1723287872903,2.502357,2633.2,2632.7,2.3694]
[1723287873099,2.502357,2633.2,2632.9,0.10875874]
[1723287873291,2.502357,2633.2,2632.8,0.10881698]
[1723287873490,2.502357,2633.2,2632.7,2.3694]
[1723287873491,1.89887,2633.2,2632.7,2.3694]
[1723287873703,1.89887,2633.2,2632.9,0.10875874]
[1723287873997,1.89887,2633.2,2632.7,2.3694]
[1723287874197,1.89887,2633.2,2632.8,0.10881698]
[1723287874428,1.89892,2633.1,2632.7,2.3694]
[1723287874731,1.89892,2633.1,2632.8,0.10881698]
[1723287875027,1.89904,2632.9,2632.8,0.10881698]
[1723287875559,1.89904,2632.9,2632.4,2.3694]
[1723287875859,1.89904,2632.9,2632.5,0.10899173]
[1723287876054,1.89913,2632.8,2632.5,0.10899173]
[1723287876626,1.89897,2633.0,2632.5,0.10899173]
[1723287877333,1.89909,2632.9,2632.5,0.10899173]
[1723287878359,1.89916,2632.8,2632.5,0.10899173]
[1723287878555,1.89919,2632.7,2632.5,0.10899173]
[1723287881672,3.79844,2632.7,2632.5,0.10899173]
[1723287883541,1.89919,2632.7,2632.5,0.10899173]
[1723287889379,1.89926,2632.6,2632.5,0.10899173]
[1723287889749,1.89926,2632.6,2632.3,0.01450348]
[1723287889945,1.89926,2632.6,2632.5,0.10918482]
[1723287890248,1.89919,2632.7,2632.5,0.10918482]
[1723287890487,1.89919,2632.7,2632.3,0.01450348]
[1723287890647,1.89919,2632.7,2632.6,0.10912656]
[1723287890847,1.89919,2632.7,2632.4,2.396]
[1723287891049,1.89919,2632.7,2632.5,0.10918482]
[1723287895249,1.89919,2632.7,2632.6,2.396]
[1723287895450,1.89894,2633.1,2632.6,2.50512656]
[1723287895673,3.0,2633.2,2632.6,2.50512656]
[1723287896066,1.89901,2633.0,2632.6,2.50512656]
[1723287897791,1.89901,2633.0,2632.6,22.06512656]
[1723287902182,1.89906,2632.9,2632.6,22.06512656]
[1723287902386,1.89911,2632.8,2632.6,19.66912656]
[1723287902591,1.89919,2632.7,2632.6,19.66912656]
[1723287903788,1.89919,2632.7,2632.6,0.10912656]
[1723287905222,4.93438,2632.7,2632.6,0.10912656]
[1723287905697,1.89939,2632.5,2632.3,0.01450348]
[1723287906291,1.8994,2632.4,2632.3,0.01450348]
[1723287910905,3.79879,2632.5,2632.3,0.01450348]
[1723287912110,1.89939,2632.5,2632.3,0.01450348]
[1723287912276,1.89921,2632.7,2632.3,0.01450348]
[1723287912469,3.79846,2632.7,2632.4,2.3538]
[1723287912676,1.89921,2632.7,2632.4,2.3538]
[1723287913173,3.79845,2632.7,2632.4,2.3538]
[1723287913367,1.89921,2632.7,2632.4,2.3538]
[1723287913798,3.79845,2632.7,2632.4,2.3538]
[1723287914171,1.89921,2632.7,2632.4,2.3538]
[1723287914371,1.89927,2632.6,2632.4,2.3538]
[1723287917595,1.89927,2632.6,2632.5,0.10943226]
[1723287927513,1.89919,2632.7,2632.5,0.10943226]
[1723287928015,1.89926,2632.6,2632.5,0.10943226]
[1723287931720,1.89926,2632.6,2632.5,0.18078534]
[1723287935920,1.89904,2632.9,2632.5,0.18078534]
[1723287936390,1.89918,2632.8,2632.5,0.18078534]
[1723287936593,1.89904,2632.9,2632.5,0.18078534]
[1723287937315,1.8992,2632.7,2632.5,0.18078534]
[1723287939411,1.8992,2632.7,2632.6,19.56]
[1723287939812,1.8992,2632.7,2632.6,19.74083904]
[1723287940923,3.79815,2632.9,2632.6,19.74083904]
[1723287941944,1.89912,2632.8,2632.6,19.74083904]
[1723287944023,0.59514756,2633.0,2632.6,19.74083904]
[1723287944333,1.89894,2633.1,2632.7,21.8541]
[1723287944710,1.89894,2633.1,2632.8,0.18066278]
[1723287945104,1.89894,2633.1,2632.7,21.8541]
[1723287945301,1.89894,2633.1,2632.8,0.18066278]
[1723287945506,1.89905,2632.9,2632.7,21.8541]
[1723287945702,3.79822,2632.8,2632.7,19.56]
[1723287947631,3.79822,2632.8,2632.7,19.74072374]
[1723287948321,3.79822,2632.8,2632.7,0.18072374]
[1723287948815,1.89933,2632.5,2632.4,19.56]
[1723287954338,1.89906,2632.9,2632.5,2.3027]
[1723287954518,1.89909,2632.9,2632.5,2.3027]
[1723287954719,3.7982,2632.9,2632.6,2.29987]
[1723287955039,1.89914,2632.8,2632.5,2.3027]
[1723287955409,1.89926,2632.6,2632.4,19.56]
[1723287959251,1.89914,2632.8,2632.4,19.56]
[1723287959426,1.89914,2632.8,2632.5,2.18772035]
[1723287959947,1.89923,2632.7,2632.5,2.18772035]
[1723287960148,1.89923,2632.7,2632.6,19.56]
[1723287962552,1.89923,2632.7,2632.6,19.74083904]
[1723287965650,1.89901,2633.0,2632.6,19.74083904]
[1723287965860,1.89915,2632.8,2632.6,19.74083904]
[1723287966158,1.89915,2632.8,2632.7,21.8287]
[1723287966337,1.89915,2632.8,2632.7,22.00947807]
[1723287972660,1.89915,2632.8,2632.7,19.74077807]
[1723287976975,1.89899,2633.0,2632.7,19.74077807]
[1723287977191,1.89891,2633.1,2632.7,19.74077807]
[1723287977959,3.79786,2633.1,2632.7,19.74077807]
[1723287978682,1.89891,2633.1,2632.7,19.74077807]
[1723287978888,3.79786,2633.1,2632.7,22.13165888]
[1723287979048,1.89891,2633.1,2632.7,22.13165888]
[1723287979550,1.89897,2633.0,2632.7,22.13165888]
[1723287979752,1.89891,2633.1,2632.8,2.2687]
[1723287980054,3.79786,2633.1,2632.8,2.44923001]
[1723287981049,3.79786,2633.1,2632.9,19.56]
[1723287981452,1.89891,2633.1,2633.0,0.1804081]
[1723287984289,0.59511427,2633.4,2633.1,2.2687]
[1723287984486,1.89813,2634.2,2633.4,2.2687]
[1723287984663,1.89813,2634.2,2633.6,2.2687]
[1723287984863,1.89813,2634.2,2633.7,1.2119295]
[1723287985075,1.89799,2634.4,2633.8,2.34462898]
[1723287985277,1.89799,2634.4,2633.9,1.136]
[1723287985597,1.89799,2634.4,2634.0,0.42398497]
[1723287985788,1.89799,2634.4,2634.1,19.56]
[1723287985988,3.79572,2634.6,2634.1,19.7391105]
[1723287986187,1.89784,2634.6,2634.1,19.7391105]
[1723287987186,2.3866,2634.9,2634.1,19.7391105]
[1723287987187,1.89801,2634.4,2634.1,19.7391105]
[1723287989990,1.89801,2634.4,2634.2,19.56]
[1723287990194,1.89801,2634.4,2634.2,19.73776834]
[1723287992298,1.89773,2634.8,2634.3,22.058]
[1723287992528,1.89773,2634.8,2634.4,1.27539577]
[1723287992802,1.8974,2635.2,2634.7,1.136]
[1723287992992,1.8974,2635.2,2634.9,2.498]
[1723287993198,1.89729,2635.4,2634.9,2.498]
[1723287993411,1.89729,2635.4,2635.0,19.7369559]
[1723287993895,1.89713,2635.6,2635.0,19.7369559]
[1723287994273,1.89703,2635.7,2635.2,2.498]
[1723287994473,1.89703,2635.7,2635.3,0.07588309]
[1723287994794,1.89703,2635.7,2635.4,19.56]
[1723287994998,1.89703,2635.7,2635.4,19.73657394]
[1723287995198,0.0346677,2635.8,2635.5,0.02046265]
[1723287995576,0.0346677,2635.8,2635.5,0.0758768]
[1723287995789,1.9316877,2635.8,2635.6,0.17645228]
[1723287995971,1.9316877,2635.8,2635.4,0.94945199]
[1723287996696,0.0346677,2635.8,2635.5,0.25219195]
[1723287997282,0.0346677,2635.8,2635.6,2.498]
[1723287997790,0.0346677,2635.8,2635.7,0.17597588]
[1723287998898,0.0346677,2635.8,2635.7,0.25184975]
[1723287999100,0.0346677,2635.8,2635.7,0.17597588]
[1723287999101,3.0676177,2635.8,2635.7,0.17597588]
[1723287999303,5.27132947,2635.8,2635.7,0.17597588]
[1723287999498,1.89717,2635.5,2635.2,22.058]
[1723288000101,1.89707,2635.7,2635.2,22.058]
[1723288000891,1.89707,2635.7,2635.2,23.194]
[1723288001090,1.89707,2635.7,2635.3,2.3194]
[1723288001288,1.8971,2635.6,2635.3,2.3194]
[1723288001905,1.8971,2635.6,2635.4,19.56]
[1723288003702,0.0346677,2635.8,2635.4,19.56]
[1723288003911,0.0346677,2635.8,2635.5,5.39712772]
[1723288007580,0.0346677,2635.8,2635.6,0.17516314]
[1723288007828,0.0346677,2635.8,2635.7,19.56]
[1723288008014,0.0346677,2635.8,2635.7,19.73510231]
[1723288008312,0.0346677,2635.8,2635.7,22.05450231]
[1723288012728,0.0346677,2635.8,2635.7,23.19050231]
[1723288014717,0.0346677,2635.8,2635.7,22.05450231]
[1723288014923,0.0346677,2635.8,2635.7,19.73510231]
[1723288015510,1.9316177,2635.8,2635.7,19.73510231]
[1723288016643,0.0346677,2635.8,2635.7,19.73510231]
[1723288016954,0.0158957,2635.8,2635.7,19.73510231]
[1723288018543,0.0158957,2635.8,2635.7,22.13770231]
[1723288018703,0.0158957,2635.8,2635.7,24.35147254]
[1723288023050,0.0158957,2635.8,2635.7,26.24849254]
[1723288027533,3.03241,2636.6,2635.9,1.89687]
[1723288027534,1.8964,2636.6,2635.9,1.89687]
[1723288027774,1.89646,2636.5,2636.0,21.41284488]
[1723288027940,1.89646,2636.5,2636.0,21.58718681]
[1723288028558,1.8964,2636.6,2636.0,21.58718681]
[1723288028768,1.8964,2636.6,2636.1,2.3027]
[1723288028937,1.8964,2636.6,2636.2,0.07585647]
[1723288029270,2.49073269,2636.7,2636.2,3.59984702]
[1723288029471,3.79257,2636.8,2636.3,0.07585567]
[1723288029675,3.79257,2636.8,2636.3,0.24996705]
[1723288029676,1.89632,2636.7,2636.3,0.24996705]
[1723288029886,1.89632,2636.7,2636.3,1.02988278]
[1723288030089,1.89623,2636.8,2636.3,1.02988278]
[1723288030235,4.38655505,2637.0,2636.4,2.3027]
[1723288030543,4.38655505,2637.0,2636.5,0.59876532]
[1723288030742,4.38655505,2637.0,2636.6,19.5441043]
[1723288030958,4.38655505,2637.0,2636.6,19.71779864]
[1723288031165,1.89626,2636.8,2636.6,19.71779864]
[1723288031952,2.49040505,2637.0,2636.6,19.71779864]
[1723288032151,2.49040505,2637.0,2636.6,20.20784398]
[1723288033844,0.59427505,2637.0,2636.8,1.136]
[1723288034057,1.89542,2638.0,2637.3,1.89583]
[1723288034257,1.89542,2638.0,2637.5,2.3027]
[1723288034458,1.89542,2638.0,2637.5,4.51647023]
[1723288034661,1.89557,2637.8,2637.6,0.17211208]
[1723288035548,1.89545,2637.9,2637.6,0.17211208]
[1723288036372,1.89554,2637.8,2637.6,0.17211208]
[1723288036886,1.89545,2637.9,2637.6,0.17211208]
[1723288037543,1.89545,2637.9,2637.7,19.5441043]
[1723288037752,5.0216877,2638.4,2637.7,19.5441043]
[1723288037753,6.23734,2637.8,2637.7,19.5441043]
[1723288039381,6.23734,2637.8,2637.0,9.7927]
[1723288039382,1.89572,2637.6,2637.1,19.5441043]
[1723288039678,1.8958,2637.4,2637.1,19.5441043]
[1723288039881,1.8958,2637.4,2637.2,19.5441043]
[1723288041456,1.89587,2637.3,2637.2,19.5441043]
[1723288041678,3.79174,2637.3,2637.2,19.5441043]
[1723288042281,1.89587,2637.3,2637.2,19.5441043]
[1723288043186,1.89587,2637.3,2637.2,18.7862043]
[1723288044477,1.8958,2637.4,2637.2,18.7862043]
[1723288045664,3.79141,2637.6,2637.2,18.7862043]
[1723288045886,3.79141,2637.6,2637.2,21.0889043]
[1723288046059,1.89569,2637.6,2637.2,21.0889043]
[1723288046387,1.89569,2637.6,2637.2,23.19779473]
[1723288049285,1.89559,2637.7,2637.2,23.19779473]
[1723288049485,1.89559,2637.7,2637.3,18.7862043]
[1723288049690,1.89554,2637.8,2637.3,18.7862043]
[1723288049898,3.79111,2637.8,2637.3,19.67099983]
[1723288050674,1.89554,2637.8,2637.3,19.67099983]
[1723288051989,1.89571,2637.6,2637.3,19.67099983]
[1723288052189,1.89571,2637.6,2637.3,18.7862043]
[1723288052596,1.89571,2637.6,2637.4,0.17122982]
[1723288054251,1.89497,2638.6,2637.9,1.89537]
[1723288054534,0.1265577,2638.4,2637.8,2.2633]
[1723288054733,2.0216877,2638.4,2638.0,0.17093756]
[1723288054877,2.0216877,2638.4,2637.9,0.17071583]
[1723288055071,2.0216877,2638.4,2637.8,2.2633]
[1723288055072,1.89516,2638.3,2637.8,2.2633]
[1723288055310,0.1265577,2638.4,2637.7,2.2633]
[1723288055605,0.1265577,2638.4,2638.0,4.15867]
[1723288055816,0.1265577,2638.4,2638.0,2.2633]
[1723288055983,2.0217077,2638.4,2638.1,0.17059439]
[1723288056813,1.89517,2638.3,2638.1,0.17059439]
[1723288057215,1.89523,2638.2,2638.1,0.17059439]
[1723288058383,2.0217077,2638.4,2638.1,0.17059439]
[1723288058590,0.1265577,2638.4,2638.1,0.41398383]
[1723288059583,0.1265577,2638.4,2638.1,2.30927383]
[1723288059819,0.1265577,2638.4,2638.2,1.9710174]
[1723288060007,0.1265577,2638.4,2638.3,2.33909637]
[1723288060341,1.89482,2638.8,2638.3,2.33909637]
[1723288060342,1.89482,2638.8,2638.4,18.6596466]
[1723288060621,1.89482,2638.8,2638.5,0.16977468]
[1723288060819,1.89482,2638.8,2638.6,18.6596466]
[1723288061129,1.89466,2639.0,2638.6,18.82936058]
[1723288061295,1.89473,2638.9,2638.6,18.82936058]
[1723288061996,1.89466,2639.0,2638.6,18.82936058]
[1723288062215,1.89466,2639.0,2638.6,20.47575461]
[1723288062413,1.89474,2638.9,2638.6,18.82936058]
[1723288063015,1.89482,2638.8,2638.6,18.82936058]
[1723288063993,1.89487,2638.7,2638.6,18.82936058]
[1723288064337,3.78974,2638.7,2638.6,0.16971398]
[1723288064478,6.298994,2638.7,2638.6,0.16971398]
[1723288064684,3.79002,2638.5,2638.4,18.6596466]
[1723288067498,2.509294,2638.7,2637.8,18.6596466]
[1723288067695,2.48842588,2639.1,2637.4,12.31]
[1723288067696,8.17483,2638.5,2638.4,3.13e-06]
[1723288067902,3.7906,2638.1,2638.0,18.6596466]
[1723288070513,5.6859,2638.1,2638.0,18.6596466]
[1723288071622,6.50347,2638.1,2638.0,18.6596466]
[1723288072620,3.7906,2638.1,2638.0,18.6596466]
[1723288073317,1.8956,2637.7,2637.3,18.6596466]
[1723288073517,1.8956,2637.7,2637.4,18.6596466]
[1723288073518,1.89562,2637.7,2637.4,18.6596466]
[1723288074198,1.89547,2637.9,2637.4,20.76445126]
[1723288074400,1.89547,2637.9,2637.5,2.3884]
[1723288075302,1.89547,2637.9,2637.6,0.16527435]
[1723288075709,1.89552,2637.8,2637.6,0.16527435]
[1723288076020,1.89547,2637.9,2637.6,0.16527435]
[1723288076595,1.89547,2637.9,2637.7,18.6596466]
[1723288076796,3.79097,2637.9,2637.8,0.16503268]
[1723288077016,3.79097,2637.9,2637.7,18.6596466]
[1723288077221,1.89547,2637.9,2637.8,0.16503268]
[1723288077418,1.89547,2637.9,2637.7,18.6596466]
[1723288077622,1.89547,2637.9,2637.8,0.16503268]
[1723288077822,1.89547,2637.9,2637.7,18.6596466]
[1723288078025,1.89547,2637.9,2637.8,0.16503268]
[1723288078193,1.89547,2637.9,2637.7,18.6596466]
[1723288078394,4.169962,2637.9,2637.8,0.16503268]
[1723288078619,1.89551,2637.8,2637.7,18.6596466]
[1723288078927,1.89551,2637.8,2637.7,18.824734]
[1723288079294,1.89537,2638.1,2637.7,18.824734]
[1723288079295,1.89546,2637.9,2637.7,18.824734]
[1723288079489,2.384877,2638.1,2637.8,2.3884]
[1723288079695,3.7907,2638.1,2637.8,2.55348076]
[1723288079894,1.89537,2638.0,2637.8,2.55348076]
[1723288080205,3.7904,2638.3,2637.8,2.55348076]
[1723288080405,1.89504,2638.5,2637.9,18.6596466]
[1723288080725,1.89504,2638.5,2638.0,21.13543362]
[1723288081455,3.78982,2638.7,2638.0,23.03078362]
[1723288081740,1.89499,2638.6,2638.1,21.0480466]
[1723288081924,1.89499,2638.6,2638.1,22.74383744]
[1723288082223,1.89499,2638.6,2638.2,0.16480785]
[1723288082429,1.8949,2638.7,2638.2,0.16480785]
[1723288082599,1.89506,2638.5,2638.2,0.16480785]
[1723288083004,3.78983,2638.7,2638.2,0.16480785]
[1723288083217,1.8949,2638.7,2638.2,2.45567238]
[1723288083592,1.89474,2638.9,2638.3,2.3884]
[1723288084021,1.89474,2638.9,2638.4,0.16468644]
[1723288084196,1.89474,2638.9,2638.4,1.04459832]
[1723288084403,2.48838588,2639.1,2638.6,2.3884]
[1723288084599,2.48838588,2639.1,2638.7,0.05829659]
[1723288084802,1.89474,2638.9,2638.7,0.16450437]
[1723288085022,3.78953,2638.9,2638.7,0.16450437]
[1723288085535,1.8948,2638.8,2638.7,0.16450437]
[1723288087436,3.7896,2638.8,2638.7,0.16450437]
[1723288087635,1.89495,2638.6,2638.3,2.3199]
[1723288087808,1.89508,2638.4,2638.3,2.3199]
[1723288087998,1.89516,2638.3,2638.0,2.3199]
[1723288088202,3.79011,2638.5,2638.0,2.3199]
[1723288088435,1.89504,2638.5,2638.0,2.55189]
[1723288089597,1.8949,2638.7,2638.1,2.3199]
[1723288089819,3.78983,2638.7,2638.2,0.444724]
[1723288090006,1.8949,2638.7,2638.1,2.3199]
[1723288091415,1.8949,2638.7,2638.2,18.6596466]
[1723288091600,1.89506,2638.5,2638.2,18.6596466]
[1723288093107,1.89491,2638.7,2638.2,18.6596466]
[1723288093298,1.89491,2638.7,2638.2,20.78080026]
[1723288093739,1.89501,2638.6,2638.2,20.78080026]
[1723288094037,1.89491,2638.7,2638.2,20.78080026]
[1723288094038,1.89502,2638.5,2638.2,18.6596466]
[1723288096307,3.78984,2638.7,2638.2,18.6596466]
[1723288096507,1.89491,2638.7,2638.2,18.6596466]
[1723288096937,3.78983,2638.7,2638.2,18.6596466]
[1723288097109,1.89494,2638.6,2638.2,18.6596466]
[1723288097443,1.89491,2638.7,2638.3,18.82399721]
[1723288098012,1.89491,2638.7,2638.4,2.3199]
[1723288098209,1.89491,2638.7,2638.5,0.16422921]
[1723288098708,1.89481,2638.8,2638.5,0.16422921]
[1723288101747,0.59374138,2639.2,2638.5,1.62819913]
[1723288101748,3.78925,2639.1,2638.5,1.62819913]
[1723288101947,3.78925,2639.1,2638.6,18.6596466]
[1723288102147,1.89469,2639.0,2638.6,18.6596466]
[1723288102447,1.8948,2638.8,2638.7,0.16410783]
[1723288102828,1.89472,2638.9,2638.7,0.16410783]